{"text_format":"1","workbook":"xlsx","n_sheets":3,"sheets":["Avustustaulukko","LASKELMA","Asukasluvut"],"not_rendered":{"charts":0,"images":0,"macros":1,"external_links":0,"defined_names":0,"comments":0,"pivot_tables":0},"unopened":[],"bounds":{"document_bytes":16777216,"sheet_cells":100000,"rows_first":2000,"rows_last":500,"rows_between":2000,"halvings":0,"cell_chars":16384,"cell_head_chars":4096},"cells_cut":0,"cells_raw":0,"read":"whole","date_system":"1900"}

{"sheet":"Avustustaulukko","index":0,"n_rows":32,"n_cols":19,"rows_kept":32,"cut":false,"hidden":false,"merged":[]}
["43 § (28.6.2013/478)"]
[]
["Yhdistymisavustuksen perusosa ja lisäosa"]
[]
["Yhdistymisavustuksen perusosa määräytyy yhdistymisessä mukana olevien kuntien lukumäärän ja asukasmäärän perusteella seuraavasti:"]
[]
["Asukasmäärä","alle 20 000","20 000–49 999","50 000–80 000","yli 80 000"]
["Kuntien lkm"]
[2,"2 000 000 euroa","3 000 000 euroa","3 500 000 euroa","4 000 000 euroa",2,2,2,2,null,20,50,70,80,null,{"$f":"F9+K9","v":22},52,72,82]
["3–4","3 000 000 euroa","4 500 000 euroa","5 000 000 euroa","6 000 000 euroa",4,4,4,4,null,20,50,70,80,null,24,54,74,84]
["5–6","4 000 000 euroa","5 500 000 euroa","6 500 000 euroa","8 000 000 euroa",6,6,6,6,null,20,50,70,80,null,26,56,76,86]
["yli 6","5 000 000 euroa","7 000 000 euroa","8 000 000 euroa","10 000 000 euroa",7,7,7,7,null,20,50,70,80,null,27,57,77,87]
[]
["Yhdistymisavustuksen lisäosaa maksetaan kuntajaon muutoksessa, jossa on mukana 4 f §:ssä tarkoitetun talousperusteen täyttävä kunta tai kuntia. Lisäosa on 150 euroa mainitun edellytyksen täyttävän kunnan asukasta kohden ja enintään miljoona euroa yhdistymistä kohden."]
[]
["L:lla 478/2013 lisätty 43 § on väliaikaisesti voimassa 1.7.2013-31.12.2019."]
[null,null,null,null,null,null,null,null,null,null,null,null,null,null,null,22,2000000,0]
[null,null,null,null,null,null,null,null,null,null,null,null,null,null,null,24,3000000,0]
[null,null,null,null,null,null,null,null,null,null,null,null,null,null,null,26,4000000,0]
[null,null,null,null,null,null,null,null,null,null,null,null,null,null,null,27,5000000,0]
[null,null,null,null,null,null,null,null,null,null,null,null,null,null,null,52,3000000,0]
[null,null,null,null,null,null,null,null,null,null,null,null,null,null,null,54,4500000,0]
[null,null,null,null,null,null,null,null,null,null,null,null,null,null,null,56,5500000,0]
[null,null,null,null,null,null,null,null,null,null,null,null,null,null,null,57,7000000,0]
[null,null,null,null,null,null,null,null,null,null,null,null,null,null,null,72,3500000,0]
[null,null,null,null,null,null,null,null,null,null,null,null,null,null,null,74,5000000,0]
[null,null,null,null,null,null,null,null,null,null,null,null,null,null,null,76,6500000,0]
[null,null,null,null,null,null,null,null,null,null,null,null,null,null,null,77,8000000,0]
[null,null,null,null,null,null,null,null,null,null,null,null,null,null,null,82,4000000,0]
[null,null,null,null,null,null,null,null,null,null,null,null,null,null,null,84,6000000,0]
[null,null,null,null,null,null,null,null,null,null,null,null,null,null,null,86,8000000,0]
[null,null,null,null,null,null,null,null,null,null,null,null,null,null,null,87,10000000,0]

{"sheet":"LASKELMA","index":1,"n_rows":48,"n_cols":24,"rows_kept":48,"cut":false,"hidden":false,"merged":[]}
["Kuntien yhdistämisavustusten laskenta-automaatti",null,null,null,null,null,null,null,null,null,"VM/Kunta- ja aluehallinto-osasto/MM 20.2.2015"]
["Valitse liitettävät kunnat ja yhdistymisvuosi",null,null,null,null,null,null,null,null,null,"Lähde:Tilastokeskus"]
[null,null,"Kuntavalikko",null,null,null,"Kuntien asukasmäärät 31.12.2013 tiedoilla*:"]
[]
[null,null,null,null,null,1,{"$f":"Q7","v":"Kurikka"},null,null,{"$f":"R7","v":14322}]
[null,null,null,null,null,2,{"$f":"Q8","v":"Jalasjärvi"},null,null,{"$f":"R8","v":7987},null,null,null,null,null,null,"Ei talousperustekuntia",null,null,null,null,null,null,"Suurimman kunnan asukasluku 2008"]
[null,null,null,null,null,3,"Ei muita liitoskuntia",null,null,0,null,null,null,null,null,111,{"$f":"INDEX(Asukasluvut!$B$7:'Asukasluvut'!$B$354,P7)","v":"Kurikka"},{"$f":"INDEX(Asukasluvut!$C$7:'Asukasluvut'!$C$354,P7)","v":14322},null,null,1,"Kunta",{"$f":"IF(R7>0,1,0)","v":1}]
[null,null,null,null,null,4,"Ei muita liitoskuntia",null,null,0,null,null,null,null,null,50,{"$f":"INDEX(Asukasluvut!$B$7:'Asukasluvut'!$B$354,P8)","v":"Jalasjärvi"},{"$f":"INDEX(Asukasluvut!$C$7:'Asukasluvut'!$C$354,P8)","v":7987},null,null,2,"Kunta",{"$f":"IF(R8>0,1,0)","v":1},"Muiden kuntien asukasluku 2008"]
[null,null,null,null,null,5,"Ei muita liitoskuntia",null,null,0,null,null,null,null,null,1,{"$f":"INDEX(Asukasluvut!$B$6:'Asukasluvut'!$B$354,P9)","v":"Ei muita liitoskuntia"},{"$f":"INDEX(Asukasluvut!$C$6:'Asukasluvut'!$C$354,P9)","v":0},null,null,3,"Kunta",0]
[null,null,null,null,null,6,"Ei muita liitoskuntia",null,null,0,null,null,null,null,null,1,{"$f":"INDEX(Asukasluvut!$B$6:'Asukasluvut'!$B$354,P10)","v":"Ei muita liitoskuntia"},{"$f":"INDEX(Asukasluvut!$C$6:'Asukasluvut'!$C$354,P10)","v":0},null,null,4,"Kunta",0,"Asukasluku yhteensä"]
[null,null,null,null,null,7,"Ei muita liitoskuntia",null,null,0,null,null,null,null,null,1,{"$f":"INDEX(Asukasluvut!$B$6:'Asukasluvut'!$B$354,P11)","v":"Ei muita liitoskuntia"},{"$f":"INDEX(Asukasluvut!$C$6:'Asukasluvut'!$C$354,P11)","v":0},null,null,5,"Kunta",0]
[null,null,null,null,null,8,"Ei muita liitoskuntia",null,null,0,null,null,null,null,null,1,{"$f":"INDEX(Asukasluvut!$B$6:'Asukasluvut'!$B$354,P12)","v":"Ei muita liitoskuntia"},{"$f":"INDEX(Asukasluvut!$C$6:'Asukasluvut'!$C$354,P12)","v":0},null,null,6,"Kunta",0,"Kuntien määrän vähennys"]
[null,null,null,null,null,9,"Ei muita liitoskuntia",null,null,0,null,null,null,null,null,1,{"$f":"INDEX(Asukasluvut!$B$6:'Asukasluvut'!$B$354,P13)","v":"Ei muita liitoskuntia"},{"$f":"INDEX(Asukasluvut!$C$6:'Asukasluvut'!$C$354,P13)","v":0},null,null,7,"Kunta",0]
[null,null,null,null,null,10,"Ei muita liitoskuntia",null,null,0,null,null,null,null,null,1,{"$f":"INDEX(Asukasluvut!$B$6:'Asukasluvut'!$B$354,P14)","v":"Ei muita liitoskuntia"},{"$f":"INDEX(Asukasluvut!$C$6:'Asukasluvut'!$C$354,P14)","v":0},null,null,8,"Kunta",0]
[null,null,null,null,null,11,{"$f":"Q17","v":"Ei muita liitoskuntia"},null,null,{"$f":"R17","v":0},null,null,null,null,null,1,{"$f":"INDEX(Asukasluvut!$B$6:'Asukasluvut'!$B$354,P15)","v":"Ei muita liitoskuntia"},{"$f":"INDEX(Asukasluvut!$C$6:'Asukasluvut'!$C$354,P15)","v":0},null,null,9,"Kunta",0]
[null,null,null,null,null,null,null,null,null,null,null,null,null,null,null,1,{"$f":"INDEX(Asukasluvut!$B$6:'Asukasluvut'!$B$354,P16)","v":"Ei muita liitoskuntia"},{"$f":"INDEX(Asukasluvut!$C$6:'Asukasluvut'!$C$354,P16)","v":0},null,null,10,"Kunta",0]
[null,null,null,null,null,null,"Uuden kunnan asukasmäärä yhteensä",null,null,null,null,null,null,null,null,1,{"$f":"INDEX(Asukasluvut!$B$6:'Asukasluvut'!$B$354,P17)","v":"Ei muita liitoskuntia"},{"$f":"INDEX(Asukasluvut!$C$6:'Asukasluvut'!$C$354,P17)","v":0},null,null,11,"Kunta",0]
[null,null,null,null,null,null,{"$f":"G24+G21","v":22309},"asukasta**"]
[null,null,null,null,null,null,null,null,null,null,null,null,null,null,null,null,"Yhteensä",{"$f":"SUM(R7:R18)","v":22309},null,null,null,null,{"$f":"SUM(W7:W18)","v":2}]
[null,null,null,null,null,null,"Suurimman liitoskunnan asukasmäärä",null,null,null,null,null,null,null,null,null,"Koodi",{"$f":"IF(R19<20000,20,IF(R19<50000,50,IF(R19<70000,70,IF(R19>80000,80))))","v":50},null,null,null,null,{"$f":"IF(W19<3,2,IF(W19<5,4,IF(W19<7,6,IF(W19>6,7))))","v":2}]
[null,null,null,null,null,null,{"$f":"R24","v":14322},"asukasta",null,null,null,null,null,null,null,null,"Yhteensä",{"$f":"R20+W20","v":52}]
[]
[null,null,null,null,null,null,"Muiden liitoskuntien asukasmäärä yhteensä"]
[null,null,null,null,null,null,{"$f":"R26","v":7987},"asukasta",null,null,null,null,null,null,null,null,"Suurimman liitoskunnan as luku",{"$f":"MAX(R7:R18)","v":14322}]
[null,null,null,null,null,null,null,null,null,null,null,null,null,null,null,null,"Uuden kunnan asukasluku",{"$f":"SUM(R7:R17)","v":22309}]
[null,null,null,null,null,null,"Kuntia mukana liitoksessa",null,null,null,null,null,null,null,null,null,"Muiden kuntien as luku",{"$f":"SUM(R7:R17)-R24","v":7987}]
[null,null,null,null,null,null,{"$f":"W19","v":2},"kuntaa***",null,null,null,null,null,null,null,null,"Muiden kuntien as luku",{"$f":"SUM(R7:R17)-R24","v":7987}]
[null,null,null,null,null,null,"Kuntien lukumäärän vähennys liitoksessa",null,null,null,null,null,null,null,2]
[null,null,"Liitoksen voimaantulovuosi",null,null,null,{"$f":"W19-1","v":1},"kuntaa",null,null,null,null,null,null,null,{"$f":"INDEX(Asukasluvut!$F$7:'Asukasluvut'!$F$10,O28)","v":2016},{"$f":"INDEX(Asukasluvut!$G$7:'Asukasluvut'!$G$10,O28)","v":1}]
[]
[null,null,null,null,null,null,null,null,null,null,null,null,null,null,null,null,null,null,"Yhdistymisavustukset"]
[null,"Yhdistymisavustus kolmelle vuodelle yhteensä",null,null,null,null,"* Asukasmääränä käytetään kunnan asukasmäärää",null,null,null,null,null,null,null,null,null,null,null,2015,2016,2017,2018,2019,2020]
[null,"Euroa",null,null,null,null,"kuntajaon muutoksen voimaantulovuotta edeltävän vuoden",null,null,null,null,null,null,null,null,null,null,null,{"$f":"VLOOKUP($R$21,Avustustaulukko!P17:R32,2)","v":3000000},{"$f":"VLOOKUP($R$21,Avustustaulukko!P17:R32,2)","v":3000000},{"$f":"VLOOKUP($R$21,Avustustaulukko!P17:R32,2)","v":3000000},{"$f":"VLOOKUP($R$21,Avustustaulukko!P17:R32,3)","v":0},{"$f":"VLOOKUP($R$21,Avustustaulukko!P17:R32,3)","v":0},{"$f":"VLOOKUP($R$21,Avustustaulukko!P17:R32,3)","v":0}]
[null,null,{"$f":"IF(Q29=1,S33,IF(Q29=2,V33))","v":3000000},null,null,null,"alussa. Vuonna 2015 käytetään 31.12.2013 tietoja,"]
[null,null,null,null,null,null,"vuonna 2016 käytetään 31.12.2014 tietoja jne.",null,null,null,null,null,null,null,3,null,"Lisäosat"]
[null,"Yhdistymisavustuksen vuosittainen jakautuminen",null,null,null,null,"Tämä voi vaikuttaa yhdistymisavustuksiin.",null,null,null,null,null,null,null,1]
[null,"Euroa",null,null,null,null,null,null,null,null,null,null,null,null,null,{"$f":"INDEX(Q6:Q17,O35)","v":"Jalasjärvi"},{"$f":"INDEX(R6:R17,O35)","v":7987},null,{"$f":"IF(Q29=1,1,IF(Q29=2,0))","v":1}]
[null,{"$f":"P29","v":2016},{"$f":"B38+1","v":2017},{"$f":"C38+1","v":2018},"Yhteensä",null,"** Avustustaulukon raja-arvot alle 20 000 as, 20 000-49 999 as, 50 000 - 80 000 as ja yli 80 000 as",null,null,null,null,null,null,null,null,{"$f":"INDEX(Q6:Q17,O36)","v":"Ei talousperustekuntia"},{"$f":"INDEX(R6:R17,O36)","v":0}]
[null,{"$f":"C34*0.4","v":1200000},{"$f":"(C34-B39)/2","v":900000},{"$f":"C34-B39-C39","v":900000},{"$f":"SUM(B39:D39)","v":3000000}]
[null,null,null,null,null,null,"*** Avustustaulukon raja-arvot 2, 3-4, 5-6 ja yli 6 kuntaa",null,null,null,null,null,null,null,null,null,{"$f":"SUM(Q37:Q39)","v":7987}]
[null,"Yhdistymisavustuksen mahdollinen lisäosa****",null,null,null,null,"**** Mikäli joku tai jotkut kunnista täyttävät talousperusteen"]
[null,null,null,null,null,null,"HUOM: Valittaessa kunta valikosta lisäosa lasketaan vain mekaanisesti asukasluvun mukaan,",null,null,null,null,null,null,null,null,null,"Lisäosa euroina"]
[null,null,null,null,null,null,"talousperusteen toteutumista ei laskelmassa huomioida!",null,null,null,null,null,null,null,null,null,{"$f":"150*Q40*S37","v":1198050}]
[null,null,null,null,null,null,"Lisäosa 150 € asukas talousperusteen täyttävissä kunnissa.",null,null,null,null,null,null,null,null,"Leikkaus",{"$f":"IF(Q43>1000000,1000000,Q43)","v":1000000}]
[null,null,null,null,null,null,"Maksimi lisäosa yhteensä 1 000 000 euroa."]
[]
[null,{"$f":"B38","v":2016},{"$f":"C38","v":2017},{"$f":"D38","v":2018},{"$f":"E38","v":"Yhteensä"}]
[null,{"$f":"E48*0.4","v":400000},{"$f":"(E48-B48)/2","v":300000},{"$f":"E48-B48-C48","v":300000},{"$f":"Q44","v":1000000}]

{"sheet":"Asukasluvut","index":2,"n_rows":354,"n_cols":7,"rows_kept":354,"cut":false,"hidden":false,"merged":[]}
["Virallinen väkiluku 31.12.2013"]
[]
["Aluejako 1.1.2015: 301 kuntaa"]
[]
["KOKO MAA - HELA LANDET",null,5451270]
[null,"Ei muita liitoskuntia",0]
[5,"Alajärvi",10227,null,null,2015,1]
[9,"Alavieska",2740,null,null,2016,1]
[10,"Alavus",12228,null,null,2017,1]
[16,"Asikkala",8405,null,null,2018,2]
[18,"Askola",4991,null,null,2019,2]
[19,"Aura",3962,null,null,2020,2]
[20,"Akaa",17108]
[46,"Enonkoski",1522]
[47,"Enontekiö - Enontekis",1891]
[49,"Espoo - Esbo",260753]
[50,"Eura",12368]
[51,"Eurajoki - Euraåminne",5931]
[52,"Evijärvi",2685]
[61,"Forssa",17667]
[69,"Haapajärvi",7616]
[71,"Haapavesi",7241]
[72,"Hailuoto - Karlö",999]
[74,"Halsua",1229]
[75,"Hamina - Fredrikshamn",21203]
[77,"Hankasalmi",5404]
[78,"Hanko - Hangö",9109]
[79,"Harjavalta",7407]
[81,"Hartola",3098]
[82,"Hattula",9684]
[86,"Hausjärvi",8808]
[90,"Heinävesi",3667]
[91,"Helsinki - Helsingfors",612664]
[92,"Vantaa - Vanda",208098]
[97,"Hirvensalmi",2338]
[98,"Hollola",21987]
[99,"Honkajoki",1819]
[102,"Huittinen",10543]
[103,"Humppila",2463]
[105,"Hyrynsalmi",2565]
[106,"Hyvinkää - Hyvinge",46188]
[108,"Hämeenkyrö - Tavastkyro",10582]
[109,"Hämeenlinna - Tavastehus",67806]
[111,"Heinola",19979]
[139,"Ii",9610]
[140,"Iisalmi - Idensalmi",22171]
[142,"Iitti",6981]
[143,"Ikaalinen - Ikalis",7303]
[145,"Ilmajoki",12099]
[146,"Ilomantsi - Ilomants",5614]
[148,"Inari - Enare",6794]
[149,"Inkoo - Ingå",5562]
[151,"Isojoki - Storå",2257]
[152,"Isokyrö - Storkyro",4854]
[153,"Imatra",28219]
[164,"Jalasjärvi",7987]
[165,"Janakkala",16842]
[167,"Joensuu",74471]
[169,"Jokioinen - Jockis",5595]
[171,"Joroinen - Jorois",5213]
[172,"Joutsa",4857]
[174,"Juankoski",4995]
[176,"Juuka",5203]
[177,"Juupajoki",2039]
[178,"Juva",6684]
[179,"Jyväskylä",134658]
[181,"Jämijärvi",1971]
[182,"Jämsä",22138]
[186,"Järvenpää - Träskända",39953]
[202,"Kaarina - S:t Karins",31798]
[204,"Kaavi",3261]
[205,"Kajaani - Kajana",37868]
[208,"Kalajoki",12644]
[211,"Kangasala",30345]
[213,"Kangasniemi",5801]
[214,"Kankaanpää",11972]
[216,"Kannonkoski",1520]
[217,"Kannus",5675]
[218,"Karijoki - Bötom",1462]
[224,"Karkkila - Högfors",9074]
[226,"Karstula",4343]
[230,"Karvia",2523]
[231,"Kaskinen - Kaskö",1350]
[232,"Kauhajoki",14081]
[233,"Kauhava",17065]
[235,"Kauniainen - Grankulla",9101]
[236,"Kaustinen - Kaustby",4288]
[239,"Keitele",2427]
[240,"Kemi",22120]
[241,"Keminmaa",8565]
[244,"Kempele",16605]
[245,"Kerava - Kervo",34913]
[249,"Keuruu",10310]
[250,"Kihniö",2111]
[256,"Kinnula",1769]
[257,"Kirkkonummi - Kyrkslätt",37899]
[260,"Kitee",11197]
[261,"Kittilä",6478]
[263,"Kiuruvesi",8866]
[265,"Kivijärvi",1259]
[271,"Kokemäki - Kumo",7769]
[272,"Kokkola - Karleby",47031]
[273,"Kolari",3885]
[275,"Konnevesi",2846]
[276,"Kontiolahti",14422]
[280,"Korsnäs",2218]
[283,"Hämeenkoski",2086]
[284,"Koski Tl",2423]
[285,"Kotka",54771]
[286,"Kouvola",86926]
[287,"Kristiinankaupunki - Kristinestad",7001]
[288,"Kruunupyy - Kronoby",6682]
[290,"Kuhmo",9104]
[291,"Kuhmoinen",2409]
[297,"Kuopio",110113]
[300,"Kuortane",3819]
[301,"Kurikka",14322]
[304,"Kustavi - Gustavs",869]
[305,"Kuusamo",15952]
[309,"Outokumpu",7262]
[312,"Kyyjärvi",1431]
[316,"Kärkölä",4755]
[317,"Kärsämäki",2721]
[319,"Köyliö - Kjulo",2688]
[320,"Kemijärvi",7983]
[322,"Kemiönsaari - Kimitoön",7012]
[398,"Lahti - Lahtis",103364]
[399,"Laihia - Laihela",8007]
[400,"Laitila",8487]
[402,"Lapinlahti",10176]
[403,"Lappajärvi",3317]
[405,"Lappeenranta - Villmanstrand",72658]
[407,"Lapinjärvi - Lappträsk",2820]
[408,"Lapua - Lappo",14692]
[410,"Laukaa",18588]
[416,"Lemi",3130]
[418,"Lempäälä",21829]
[420,"Leppävirta",10170]
[421,"Lestijärvi",818]
[422,"Lieksa",12303]
[423,"Lieto - Lundo",19128]
[425,"Liminka - Limingo",9577]
[426,"Liperi",12396]
[430,"Loimaa",16700]
[433,"Loppi",8341]
[434,"Loviisa - Lovisa",15493]
[435,"Luhanka",763]
[436,"Lumijoki",2084]
[440,"Luoto - Larsmo",5065]
[441,"Luumäki",4992]
[442,"Luvia",3355]
[444,"Lohja - Lojo",47703]
[445,"Parainen",15507]
[475,"Maalahti - Malax",5580]
[480,"Marttila",2056]
[481,"Masku",9729]
[483,"Merijärvi",1153]
[484,"Merikarvia - Sastmola",3226]
[489,"Miehikkälä",2145]
[491,"Mikkeli - S:t Michel",54635]
[494,"Muhos",8998]
[495,"Multia",1777]
[498,"Muonio",2383]
[499,"Mustasaari - Korsholm",19153]
[500,"Muurame",9572]
[503,"Mynämäki",7950]
[504,"Myrskylä - Mörskom",1987]
[505,"Mäntsälä",20534]
[507,"Mäntyharju",6287]
[508,"Mänttä-Vilppula",10898]
[529,"Naantali - Nådendal",18859]
[531,"Nakkila",5706]
[532,"Nastola",14985]
[535,"Nivala",10942]
[536,"Nokia",32690]
[538,"Nousiainen - Nousis",4872]
[541,"Nurmes",8191]
[543,"Nurmijärvi",41178]
[545,"Närpiö - Närpes",9335]
[560,"Orimattila",16347]
[561,"Oripää",1423]
[562,"Orivesi",9630]
[563,"Oulainen",7772]
[564,"Oulu - Uleåborg",193798]
[576,"Padasjoki",3279]
[577,"Paimio - Pemar",10590]
[578,"Paltamo",3620]
[580,"Parikkala",5509]
[581,"Parkano",6836]
[583,"Pelkosenniemi",966]
[584,"Perho",2923]
[588,"Pertunmaa",1842]
[592,"Petäjävesi",4125]
[593,"Pieksämäki",19288]
[595,"Pielavesi",4824]
[598,"Pietarsaari - Jakobstad",19633]
[599,"Pedersören kunta - Pedersöre",10970]
[601,"Pihtipudas",4354]
[604,"Pirkkala - Birkala",18369]
[607,"Polvijärvi",4664]
[608,"Pomarkku - Påmark",2340]
[609,"Pori - Björneborg",85399]
[611,"Pornainen - Borgnäs",5145]
[614,"Posio",3647]
[615,"Pudasjärvi",8537]
[616,"Pukkila",2036]
[619,"Punkalaidun",3173]
[620,"Puolanka",2878]
[623,"Puumala",2319]
[624,"Pyhtää - Pyttis",5384]
[625,"Pyhäjoki",3356]
[626,"Pyhäjärvi",5731]
[630,"Pyhäntä",1545]
[631,"Pyhäranta",2177]
[635,"Pälkäne",6795]
[636,"Pöytyä",8590]
[638,"Porvoo - Borgå",49426]
[678,"Raahe - Brahestad",25507]
[680,"Raisio - Reso",24565]
[681,"Rantasalmi",3872]
[683,"Ranua",4154]
[684,"Rauma - Raumo",39979]
[686,"Rautalampi",3426]
[687,"Rautavaara",1784]
[689,"Rautjärvi",3682]
[691,"Reisjärvi",2925]
[694,"Riihimäki",29318]
[697,"Ristijärvi",1427]
[698,"Rovaniemi",61215]
[700,"Ruokolahti",5507]
[702,"Ruovesi",4771]
[704,"Rusko",5995]
[707,"Rääkkylä",2467]
[710,"Raasepori - Raseborg",28695]
[729,"Saarijärvi",10165]
[732,"Salla",3890]
[734,"Salo",54478]
[738,"Sauvo - Sagu",3032]
[739,"Savitaipale",3729]
[740,"Savonlinna - Nyslott",36256]
[742,"Savukoski",1126]
[743,"Seinäjoki",60354]
[746,"Sievi",5198]
[747,"Siikainen",1632]
[748,"Siikajoki",5593]
[749,"Siilinjärvi",21567]
[751,"Simo",3356]
[753,"Sipoo - Sibbo",18914]
[755,"Siuntio - Sjundeå",6183]
[758,"Sodankylä",8884]
[759,"Soini",2284]
[761,"Somero",9146]
[762,"Sonkajärvi",4454]
[765,"Sotkamo",10659]
[768,"Sulkava",2794]
[777,"Suomussalmi",8661]
[778,"Suonenjoki",7456]
[781,"Sysmä",4139]
[783,"Säkylä",4567]
[785,"Vaala",3193]
[790,"Sastamala",25511]
[791,"Siikalatva",5857]
[831,"Taipalsaari",4826]
[832,"Taivalkoski",4251]
[833,"Taivassalo - Tövsala",1667]
[834,"Tammela",6474]
[837,"Tampere - Tammerfors",220446]
[844,"Tervo",1669]
[845,"Tervola",3306]
[846,"Teuva - Östermark",5656]
[848,"Tohmajärvi",4876]
[849,"Toholampi",3381]
[850,"Toivakka",2466]
[851,"Tornio - Torneå",22371]
[853,"Turku - Åbo",182072]
[854,"Pello",3739]
[857,"Tuusniemi",2802]
[858,"Tuusula - Tusby",38125]
[859,"Tyrnävä",6642]
[886,"Ulvila - Ulvsby",13361]
[887,"Urjala",5105]
[889,"Utajärvi",2945]
[890,"Utsjoki",1279]
[892,"Uurainen",3594]
[893,"Uusikaarlepyy - Nykarleby",7524]
[895,"Uusikaupunki - Nystad",15463]
[905,"Vaasa - Vasa",66321]
[908,"Valkeakoski",21129]
[911,"Valtimo",2379]
[915,"Varkaus",22107]
[918,"Vehmaa",2330]
[921,"Vesanto",2288]
[922,"Vesilahti",4473]
[924,"Veteli - Vetil",3332]
[925,"Vieremä",3874]
[927,"Vihti - Vichtis",28929]
[931,"Viitasaari",6895]
[934,"Vimpeli",3171]
[935,"Virolahti",3435]
[936,"Virrat - Virdois",7280]
[946,"Vöyri - Vörå",6691]
[976,"Ylitornio - Övertorneå",4482]
[977,"Ylivieska",14748]
[980,"Ylöjärvi",31743]
[981,"Ypäjä",2483]
[989,"Ähtäri - Etseri",6271]
[992,"Äänekoski",20077]
[845,"Tervola",3476]
[846,"Teuva - Östermark",6077]
[848,"Tohmajärvi",5161]
[849,"Toholampi",3536]
[850,"Toivakka",2367]
[851,"Tornio - Torneå",22487]
[853,"Turku - Åbo",175582]
[857,"Tuusniemi",2877]
[858,"Tuusula - Tusby",36386]
[859,"Tyrnävä",6148]
[863,"Töysä",3235]
[886,"Ulvila - Ulvsby",13707]
[887,"Urjala",5414]
[889,"Utajärvi",3045]
[890,"Utsjoki",1322]
[892,"Uurainen",3321]
[893,"Uusikaarlepyy - Nykarleby",7429]
[895,"Uusikaupunki - Nystad",15886]
[785,"Vaala",3470]
[905,"Vaasa - Vasa",58597]
[908,"Valkeakoski",20542]
[911,"Valtimo",2508]
[92,"Vantaa - Vanda",195397]
[915,"Varkaus",23182]
[916,"Varpaisjärvi",2996]
[918,"Vehmaa",2445]
[921,"Vesanto",2437]
[922,"Vesilahti",4248]
[924,"Veteli - Vetil",3501]
[925,"Vieremä",4062]
[926,"Vihanti",3238]
[927,"Vihti - Vichtis",27628]
[931,"Viitasaari",7330]
[934,"Vimpeli",3302]
[935,"Virolahti",3541]
[936,"Virrat - Virdois",7629]
[941,"Vårdö",449]
[942,"Vähäkyrö - Lillkyro",4732]
[945,"Vöyri-Maksamaa - Vörå-Maxmo",4470]
[972,"Yli-Ii",2192]
[976,"Ylitornio - Övertorneå",4847]
[977,"Ylivieska",13803]
[978,"Ylämaa",1427]
[980,"Ylöjärvi",29762]
[981,"Ypäjä",2630]
[989,"Ähtäri - Etseri",6620]
[992,"Äänekoski",20325]